[Event "FIDE World Rapid-ch Open 2018"]
[White "Rakhmanov, Aleksandr"]
[Black "Shirov, Alexei"]
[Site "St. Petersburg"]
[Round "11.27"]
[Annotator "ChessBase"]
[Result "1/2-1/2"]
[Date "2018.12.28"]
[WhiteElo "2629"]
[BlackElo "2643"]
[PlyCount "70"]
[TimeControl "900+10"]

1. Nf3 {[%emt 0:0:0]} d5 {[%emt 0:0:0]} 2. g3 {[%emt 0:0:0]} Bg4 {[%emt 0:0:0]
} 3. Bg2 {[%emt 0:0:0]} Nd7 {[%emt 0:0:0]} 4. d4 {[%emt 0:0:0]} e6 {[%emt 0:0:29]} 5. 0-0 {[%emt 0:0:4]} Bd6 {[%emt 0:0:23]} 6. Nbd2 {[%emt 0:1:7]
} Ngf6 {[%emt 0:0:17]} 7. Re1 {[%emt 0:0:39]} 0-0 {[%emt 0:0:0]} 8. e4 {[%emt 0:1:57]} dxe4 {[%emt 0:0:3]} 9. Nxe4 {[%emt 0:0:2]} Nxe4 {[%emt 0:0:2]} 10. Rxe4 {[%emt 0:0:2]} Nf6 {[%emt 0:0:5]} 11. Re1 {[%emt 0:1:19]
} c5 {[%emt 0:0:17]} 12. dxc5 {[%emt 0:2:38]} Bxc5 {[%emt 0:0:0]} 13. Qxd8 {[%emt 0:0:5]} Raxd8 {[%emt 0:0:42]} 14. Ne5 {[%emt 0:0:8]} Bf5 {[%emt 0:5:22]} 15. c3 {[%emt 0:0:2]} Nd5 {[%emt 0:1:10]} 16. a4 {[%emt 0:1:17]
} a5 {[%emt 0:0:9]} 17. Nc4 {[%emt 0:3:57]} b6 {[%emt 0:0:4]
} 18. Ne5 {[%emt 0:0:2]} Bc2 {[%emt 0:1:45]} 19. Nc6 {[%emt 0:1:12]} Rd7 {[%emt 0:0:2]
} 20. Bxd5 {[%emt 0:2:15]} Rxd5 {[%emt 0:0:26]} 21. Be3 {[%emt 0:1:3]
} Rc8 {[%emt 0:0:16]} 22. Bxc5 {[%emt 0:0:12]} Rxc6 {[%emt 0:0:0]} 23. Bd4 {[%emt 0:0:8]} f6 {[%emt 0:0:19]} 24. f4 {[%emt 0:0:2]} Kf7 {[%emt 0:0:39]} 25. Re2 {[%emt 0:0:1]} Bb3 {[%emt 0:1:19]} 26. Kf2 {[%emt 0:0:1]
} b5 {[%emt 0:0:20]} 27. axb5 {[%emt 0:0:3]} Rxb5 {[%emt 0:0:0]} 28. Rd2 {[%emt 0:0:11]} Rd6 {[%emt 0:0:9]} 29. Be3 {[%emt 0:0:6]} Rxd2+ {[%emt 0:0:6]} 30. Bxd2 {[%emt 0:0:1]} a4 {[%emt 0:0:9]} 31. Re1 {[%emt 0:0:10]
} Rd5 {[%emt 0:0:14]} 32. Bc1 {[%emt 0:0:8]} h5 {[%emt 0:0:0]} 33. Re4 {[%emt 0:0:2]} Rd1 {[%emt 0:0:5]} 34. Re1 {[%emt 0:0:1]} Rd8 {[%emt 0:1:52]} 35. Re4 {[%emt 0:0:2]} Rd1 1/2-1/2

[Event "FIDE World Rapid-ch Open 2018"]
[White "Petrov, Nikita"]
[Black "Ponkratov, Pavel"]
[Site "St. Petersburg"]
[Round "11.28"]
[Annotator "ChessBase"]
[Result "0-1"]
[Date "2018.12.28"]
[WhiteElo "2593"]
[BlackElo "2630"]
[PlyCount "96"]
[TimeControl "900+10"]

1. e4 {[%emt 0:0:0]} e5 {[%emt 0:0:0]} 2. Bc4 {[%emt 0:0:0]} Nc6 {[%emt 0:0:0]
} 3. Nf3 {[%emt 0:0:0]} Nf6 {[%emt 0:0:0]} 4. d3 {[%emt 0:0:0]} h6 {[%emt 0:0:0]} 5. 0-0 {[%emt 0:0:16]} g5 {[%emt 0:0:0]} 6. d4 {[%emt 0:1:31]
} exd4 {[%emt 0:0:0]} 7. Nxd4 {[%emt 0:2:24]} Ne5 {[%emt 0:0:0]} 8. Bb3 {[%emt 0:0:47]} Bc5 {[%emt 0:0:2]} 9. Nf3 {[%emt 0:1:43]} d6 {[%emt 0:2:40]
} 10. Nxe5 {[%emt 0:0:6]} dxe5 {[%emt 0:0:1]} 11. Qe2 {[%emt 0:0:48]
} Qe7 {[%emt 0:0:6]} 12. Be3 {[%emt 0:1:56]} Bxe3 {[%emt 0:0:0]} 13. Qxe3 {[%emt 0:0:5]} Nh5 {[%emt 0:0:25]} 14. Nc3 {[%emt 0:0:41]} c6 {[%emt 0:0:1]} 15. Ne2 {[%emt 0:0:28]} Nf4 {[%emt 0:0:3]} 16. Ng3 {[%emt 0:0:25]
} 0-0 {[%emt 0:2:13]} 17. Rad1 {[%emt 0:1:2]} Bg4 {[%emt 0:0:0]} 18. Nf5 {[%emt 0:1:13]} Bxf5 {[%emt 0:0:19]} 19. exf5 {[%emt 0:0:1]} a5 {[%emt 0:0:32]} 20. a4 {[%emt 0:1:52]} Rad8 {[%emt 0:0:5]} 21. Qb6 {[%emt 0:0:20]
} e4 {[%emt 0:0:56]} 22. Rde1 {[%emt 0:0:44]} Rfe8 {[%emt 0:0:0]} 23. Qxa5 {[%emt 0:0:27]} Qf6 {[%emt 0:0:1]} 24. Qb6 {[%emt 0:0:36]} Rd7 {[%emt 0:1:14]} 25. g3 {[%emt 0:1:19]} Nh3+ {[%emt 0:0:30]} 26. Kg2 {[%emt 0:0:4]
} Qxf5 {[%emt 0:0:2]} 27. Qe3 {[%emt 0:0:1]} g4 {[%emt 0:0:0]} 28. Kh1 {[%emt 0:0:34]} Kg7 {[%emt 0:0:24]} 29. Qc3+ {[%emt 0:0:11]} f6 {[%emt 0:0:12]} 30. Bc4 {[%emt 0:0:10]} Nxf2+ {[%emt 0:1:8]} 31. Kg1 {[%emt 0:0:11]
} Nh3+ {[%emt 0:0:22]} 32. Kh1 {[%emt 0:0:8]} Qe5 {[%emt 0:0:0]} 33. Qe3 {[%emt 0:0:7]} Qd4 {[%emt 0:0:12]} 34. Qe2 {[%emt 0:0:3]} e3 {[%emt 0:0:8]} 35. Bd3 {[%emt 0:0:24]} Nf2+ {[%emt 0:0:32]} 36. Kg1 {[%emt 0:0:9]
} Qd5 {[%emt 0:0:17]} 37. Rxf2 {[%emt 0:0:9]} exf2+ {[%emt 0:0:0]} 38. Qxf2 {[%emt 0:0:1]} Rxe1+ {[%emt 0:0:6]} 39. Qxe1 {[%emt 0:0:0]} Qc5+ {[%emt 0:0:7]} 40. Kf1 {[%emt 0:0:14]} Re7 {[%emt 0:0:5]} 41. Qd2 {[%emt 0:0:10]} h5 {[%emt 0:0:14]} 42. Qf4 {[%emt 0:0:8]} Qd5 {[%emt 0:0:0]} 43. Kg1 {[%emt 0:0:20]} Qe5 {[%emt 0:0:2]} 44. Qxe5 {[%emt 0:0:7]} Rxe5 {[%emt 0:0:1]} 45. Kf2 {[%emt 0:0:2]} Kh6 {[%emt 0:0:1]} 46. b4 {[%emt 0:0:2]
} Kg5 {[%emt 0:0:1]} 47. c4 {[%emt 0:0:1]} c5 {[%emt 0:0:13]
} 48. b5 {[%emt 0:0:7]} b6 {[%emt 0:0:1]} 0-1

[Event "FIDE World Rapid-ch Open 2018"]
[White "Grigoriants, Sergey"]
[Black "Khanin, Semen"]
[Site "St. Petersburg"]
[Round "11.29"]
[Annotator "ChessBase"]
[Result "1/2-1/2"]
[Date "2018.12.28"]
[WhiteElo "2540"]
[BlackElo "2514"]
[PlyCount "54"]
[TimeControl "900+10"]

1. Nf3 {[%emt 0:0:0]} Nf6 {[%emt 0:0:0]} 2. c4 {[%emt 0:0:0]} g6 {[%emt 0:0:0]
} 3. Nc3 {[%emt 0:0:11]} Bg7 {[%emt 0:0:0]} 4. e4 {[%emt 0:0:0]} d6 {[%emt 0:0:0]} 5. d4 {[%emt 0:0:4]} 0-0 {[%emt 0:0:1]} 6. Be2 {[%emt 0:0:43]
} e5 {[%emt 0:0:4]} 7. Be3 {[%emt 0:0:29]} Qe8 {[%emt 0:0:2]
} 8. dxe5 {[%emt 0:3:35]} Ng4 {[%emt 0:0:1]} 9. Bg5 {[%emt 0:0:3]} Nxe5 {[%emt 0:0:7]
} 10. 0-0 {[%emt 0:0:28]} f6 {[%emt 0:1:47]} 11. Be3 {[%emt 0:0:0]} Na6 {[%emt 0:1:23]} 12. Nd4 {[%emt 0:0:29]} Qf7 {[%emt 0:0:19]} 13. b3 {[%emt 0:0:29]} f5 {[%emt 0:0:34]} 14. exf5 {[%emt 0:0:53]} gxf5 {[%emt 0:0:8]
} 15. Bh5 {[%emt 0:3:57]} Ng6 {[%emt 0:0:19]} 16. f4 {[%emt 0:0:0]} Nc5 {[%emt 0:0:47]} 17. Qd2 {[%emt 0:0:5]} Bd7 {[%emt 0:0:48]} 18. Rae1 {[%emt 0:0:12]} Rae8 {[%emt 0:0:6]} 19. Ndb5 {[%emt 0:1:41]} Bxb5 {[%emt 0:1:17]
} 20. cxb5 {[%emt 0:0:26]} Kh8 {[%emt 0:1:25]} 21. Bd4 {[%emt 0:0:21]
} Rxe1 {[%emt 0:0:57]} 22. Rxe1 {[%emt 0:0:3]} Re8 {[%emt 0:0:0]} 23. Bxg7+ {[%emt 0:0:52]} Kxg7 {[%emt 0:0:2]} 24. g3 {[%emt 0:0:6]
} Rxe1+ {[%emt 0:1:29]} 25. Qxe1 {[%emt 0:0:1]} Qe7 {[%emt 0:0:5]} 26. Qxe7+ {[%emt 0:0:19]} Nxe7 {[%emt 0:0:2]} 27. Bf3 {[%emt 0:0:1]} c6 {[%emt 0:0:46]
} 1/2-1/2

[Event "FIDE World Rapid-ch Open 2018"]
[White "Tang, Andrew"]
[Black "Mchedlishvili, Mikheil"]
[Site "St. Petersburg"]
[Round "11.30"]
[Annotator "ChessBase"]
[Result "1/2-1/2"]
[Date "2018.12.28"]
[WhiteElo "2487"]
[BlackElo "2610"]
[PlyCount "84"]
[TimeControl "900+10"]

1. d4 {[%emt 0:0:0]} d5 {[%emt 0:0:0]} 2. Bf4 {[%emt 0:0:0]} Nf6 {[%emt 0:0:1]
} 3. e3 {[%emt 0:0:0]} c5 {[%emt 0:0:15]} 4. Nc3 {[%emt 0:0:0]} cxd4 {[%emt 0:0:21]} 5. exd4 {[%emt 0:0:1]} a6 {[%emt 0:0:11]} 6. Nf3 {[%emt 0:0:3]} Bg4 {[%emt 0:0:44]} 7. h3 {[%emt 0:0:2]} Bxf3 {[%emt 0:0:0]} 8. Qxf3 {[%emt 0:0:2]} Nc6 {[%emt 0:0:12]} 9. 0-0-0 {[%emt 0:0:3]} e6 {[%emt 0:0:6]} 10. g4 {[%emt 0:0:2]} Bd6 {[%emt 0:2:0]} 11. h4 {[%emt 0:0:0]} Rc8 {[%emt 0:1:13]} 12. g5 {[%emt 0:1:22]} Bxf4+ {[%emt 0:0:23]} 13. Qxf4 {[%emt 0:0:2]} Nh5 {[%emt 0:0:7]} 14. Qe3 {[%emt 0:4:32]} Na5 {[%emt 0:1:1]
} 15. Kb1 {[%emt 0:3:10]} g6 {[%emt 0:1:46]} 16. Be2 {[%emt 0:0:0]} Nc4 {[%emt 0:0:51]} 17. Qc1 {[%emt 0:0:32]} Ng7 {[%emt 0:1:53]} 18. h5 {[%emt 0:0:11]} Rg8 {[%emt 0:0:22]} 19. hxg6 {[%emt 0:0:9]} hxg6 {[%emt 0:0:1]
} 20. Bd3 {[%emt 0:3:35]} Nh5 {[%emt 0:1:33]} 21. Rhe1 {[%emt 0:1:4]
} Kf8 {[%emt 0:0:34]} 22. Ne2 {[%emt 0:0:51]} Qd6 {[%emt 0:0:0]} 23. Bxc4 {[%emt 0:0:6]} Rxc4 {[%emt 0:0:3]} 24. Qe3 {[%emt 0:0:4]} Ke7 {[%emt 0:2:46]} 25. Qf3 {[%emt 0:0:41]} Rf8 {[%emt 0:0:46]} 26. Ng3 {[%emt 0:0:34]
} Nxg3 {[%emt 0:0:8]} 27. fxg3 {[%emt 0:0:1]} Kd8 {[%emt 0:0:0]} 28. c3 {[%emt 0:0:9]} Rc7 {[%emt 0:0:4]} 29. Rh1 {[%emt 0:0:38]} Kc8 {[%emt 0:0:10]} 30. Rh7 {[%emt 0:0:18]} Re7 {[%emt 0:0:46]} 31. Qf4 {[%emt 0:0:14]
} e5 {[%emt 0:0:28]} 32. dxe5 {[%emt 0:0:20]} Qxe5 {[%emt 0:0:0]} 33. Rh2 {[%emt 0:0:9]} Qe4+ {[%emt 0:0:11]} 34. Kc1 {[%emt 0:0:7]} Rd8 {[%emt 0:0:28]} 35. Rhd2 {[%emt 0:0:9]} Qxf4 {[%emt 0:0:17]} 36. gxf4 {[%emt 0:0:1]
} Re4 {[%emt 0:0:1]} 37. Rd4 {[%emt 0:0:26]} Rde8 {[%emt 0:0:0]} 38. a4 {[%emt 0:0:24]} Kc7 {[%emt 0:0:11]} 39. Rxd5 {[%emt 0:0:18]} Rxf4 {[%emt 0:0:1]} 40. Rc5+ {[%emt 0:0:1]} Kb8 {[%emt 0:0:5]} 41. a5 {[%emt 0:0:11]
} Rf2 {[%emt 0:0:13]} 42. Rd2 {[%emt 0:0:6]} Rxd2 1/2-1/2

[Event "FIDE World Rapid-ch Open 2018"]
[White "Potkin, Vladimir"]
[Black "Van Foreest, Jorden"]
[Site "St. Petersburg"]
[Round "11.31"]
[Annotator "ChessBase"]
[Result "1/2-1/2"]
[Date "2018.12.28"]
[WhiteElo "2597"]
[BlackElo "2614"]
[PlyCount "130"]
[TimeControl "900+10"]

1. c4 {[%emt 0:0:0]} e5 {[%emt 0:0:0]} 2. Nc3 {[%emt 0:0:0]} Nf6 {[%emt 0:0:4]
} 3. Nf3 {[%emt 0:0:0]} Nc6 {[%emt 0:0:3]} 4. g3 {[%emt 0:0:0]} d5 {[%emt 0:0:9]} 5. cxd5 {[%emt 0:0:1]} Nxd5 {[%emt 0:0:2]} 6. Bg2 {[%emt 0:0:2]} Bc5 {[%emt 0:0:18]} 7. 0-0 {[%emt 0:0:5]} 0-0 {[%emt 0:0:0]} 8. d3 {[%emt 0:0:2]} Re8 {[%emt 0:0:3]} 9. Qb3 {[%emt 0:0:3]} Nde7 {[%emt 0:0:9]
} 10. Qc4 {[%emt 0:2:41]} Bb6 {[%emt 0:2:38]} 11. Na4 {[%emt 0:0:0]} Be6 {[%emt 0:0:19]} 12. Qh4 {[%emt 0:3:20]} f6 {[%emt 0:0:21]} 13. g4 {[%emt 0:2:23]} Qd7 {[%emt 0:0:42]} 14. h3 {[%emt 0:0:8]} Nb4 {[%emt 0:0:0]} 15. b3 {[%emt 0:0:31]} Nbd5 {[%emt 0:0:43]} 16. Qg3 {[%emt 0:0:35]} Rad8 {[%emt 0:0:24]} 17. Bd2 {[%emt 0:0:15]} Ng6 {[%emt 0:0:7]} 18. e3 {[%emt 0:0:15]
} c6 {[%emt 0:1:24]} 19. Rfd1 {[%emt 0:0:17]} Bc7 {[%emt 0:0:0]} 20. Nc5 {[%emt 0:0:40]} Qe7 {[%emt 0:0:1]} 21. Ne4 {[%emt 0:0:12]} Nb4 {[%emt 0:0:1]} 22. Bxb4 {[%emt 0:0:13]} Qxb4 {[%emt 0:0:2]} 23. h4 {[%emt 0:0:27]
} Qf8 {[%emt 0:0:43]} 24. h5 {[%emt 0:0:14]} Ne7 {[%emt 0:0:0]} 25. Nh4 {[%emt 0:0:11]} Kh8 {[%emt 0:0:45]} 26. Rac1 {[%emt 0:0:9]} Bc8 {[%emt 0:0:31]} 27. Bh3 {[%emt 0:0:41]} Rd5 {[%emt 0:1:19]} 28. Qf3 {[%emt 0:1:46]
} Red8 {[%emt 0:0:13]} 29. Qe2 {[%emt 0:0:5]} Ng8 {[%emt 0:0:0]} 30. Kg2 {[%emt 0:0:5]} Nh6 {[%emt 0:0:2]} 31. Nc3 {[%emt 0:0:41]} R5d7 {[%emt 0:0:15]} 32. Ne4 {[%emt 0:0:1]} Rd5 {[%emt 0:0:19]} 33. Nc3 {[%emt 0:0:1]
} Ra5 {[%emt 0:0:30]} 34. Rd2 {[%emt 0:0:13]} Bd6 {[%emt 0:0:0]} 35. Ne4 {[%emt 0:0:29]} Bb4 {[%emt 0:0:4]} 36. Rdc2 {[%emt 0:0:3]} Rad5 {[%emt 0:0:5]} 37. Rd1 {[%emt 0:0:1]} Qe7 {[%emt 0:0:27]} 38. Rc4 {[%emt 0:0:19]
} b5 {[%emt 0:0:21]} 39. Rc2 {[%emt 0:0:23]} Qd7 {[%emt 0:0:0]} 40. Nf5 {[%emt 0:1:2]} Nxf5 {[%emt 0:0:42]} 41. gxf5 {[%emt 0:0:1]} h6 {[%emt 0:0:15]} 42. Bg4 {[%emt 0:0:3]} c5 {[%emt 0:0:10]} 43. Ng3 {[%emt 0:0:26]
} Rxd3 {[%emt 0:0:8]} 44. Rxd3 {[%emt 0:0:3]} Qxd3 {[%emt 0:0:0]} 45. Qxd3 {[%emt 0:0:1]} Rxd3 {[%emt 0:0:1]} 46. Be2 {[%emt 0:0:3]
} Bb7+ {[%emt 0:0:2]} 47. Kf1 {[%emt 0:0:15]} e4 {[%emt 0:0:6]} 48. f3 {[%emt 0:0:51]
} Rxe3 {[%emt 0:0:19]} 49. Nxe4 {[%emt 0:0:1]} a6 {[%emt 0:0:0]} 50. Kf2 {[%emt 0:0:41]} Bxe4 {[%emt 0:0:2]} 51. fxe4 {[%emt 0:0:1]} Rxe4 {[%emt 0:0:1]} 52. Kg3 {[%emt 0:0:41]} Be1+ {[%emt 0:1:1]} 53. Kf3 {[%emt 0:0:9]
} Re5 {[%emt 0:0:1]} 54. Kf4 {[%emt 0:0:2]} Bh4 {[%emt 0:0:0]} 55. Bf3 {[%emt 0:0:12]} Kg8 {[%emt 0:0:40]} 56. Bb7 {[%emt 0:0:18]} a5 {[%emt 0:0:9]} 57. Bc6 {[%emt 0:0:3]} Kf8 {[%emt 0:0:2]} 58. Bxb5 {[%emt 0:0:15]
} Bg5+ 59. Kg4 Re4+ {[%emt 0:0:6]} 60. Kg3 {[%emt 0:0:1]} Re3+ {[%emt 0:0:9]} 61. Kg4 {[%emt 0:0:3]} Re4+ {[%emt 0:0:15]} 62. Kg3 {[%emt 0:0:1]
} Re5 {[%emt 0:0:2]} 63. Kg4 {[%emt 0:0:2]} Ke7 {[%emt 0:0:0]} 64. Re2 {[%emt 0:0:14]} Be3 {[%emt 0:0:4]} 65. Kf3 {[%emt 0:0:7]} Bd4 {[%emt 0:1:6] Ke4} 1/2-1/2

[Event "FIDE World Rapid-ch Open 2018"]
[White "Fedoseev, Vladimir"]
[Black "Predke, Alexandr"]
[Site "St. Petersburg"]
[Round "11.32"]
[Annotator "ChessBase"]
[Result "1-0"]
[Date "2018.12.28"]
[WhiteElo "2719"]
[BlackElo "2622"]
[PlyCount "133"]
[TimeControl "900+10"]

1. d4 {[%emt 0:0:0]} d5 {[%emt 0:0:0]} 2. c4 {[%emt 0:0:0]} dxc4 {[%emt 0:0:1]
} 3. Nf3 {[%emt 0:0:0]} Nf6 {[%emt 0:0:3]} 4. Qa4+ {[%emt 0:0:0]} Nbd7 {[%emt 0:0:15]} 5. Nc3 {[%emt 0:0:9]} a6 {[%emt 0:1:19]} 6. e4 {[%emt 0:0:15]} e6 {[%emt 0:0:49]} 7. Bxc4 {[%emt 0:0:10]} Rb8 {[%emt 0:0:0]} 8. Qc2 {[%emt 0:0:30]} b5 {[%emt 0:0:42]} 9. Bd3 {[%emt 0:0:2]} Bb7 {[%emt 0:0:1]
} 10. Bg5 {[%emt 0:2:20]} h6 {[%emt 0:0:21]} 11. Bh4 {[%emt 0:0:0]} Be7 {[%emt 0:2:32]} 12. Rd1 {[%emt 0:0:2]} 0-0 {[%emt 0:0:43]} 13. 0-0 {[%emt 0:0:3]} Rc8 {[%emt 0:0:8]} 14. Rfe1 {[%emt 0:2:52]} Re8 {[%emt 0:1:31]
} 15. a3 {[%emt 0:2:25]} c5 {[%emt 0:0:11]} 16. dxc5 {[%emt 0:0:0]} Rxc5 {[%emt 0:0:18]} 17. Qe2 {[%emt 0:1:28]} Nh5 {[%emt 0:0:30]} 18. Bxe7 {[%emt 0:0:23]} Qxe7 {[%emt 0:0:5]} 19. Qe3 {[%emt 0:0:11]} Rec8 {[%emt 0:1:54]
} 20. Nd4 {[%emt 0:0:32]} Qg5 {[%emt 0:0:45]} 21. Qxg5 {[%emt 0:1:31]
} hxg5 {[%emt 0:0:2]} 22. Be2 {[%emt 0:0:2]} Nhf6 {[%emt 0:0:0]} 23. f3 {[%emt 0:0:2]} Kf8 {[%emt 0:1:27]} 24. h3 {[%emt 0:0:14]} Ke7 {[%emt 0:0:8]} 25. Rd2 {[%emt 0:0:13]} Ne5 {[%emt 0:0:8]} 26. Red1 {[%emt 0:0:47]
} R5c7 {[%emt 0:0:7]} 27. Nb3 {[%emt 0:0:13]} Rd7 {[%emt 0:0:0]} 28. Na5 {[%emt 0:0:30]} Rxd2 {[%emt 0:0:22]} 29. Rxd2 {[%emt 0:0:1]} Bc6 {[%emt 0:0:30]} 30. Na2 {[%emt 0:0:34]} Nfd7 {[%emt 0:0:50]} 31. Nb4 {[%emt 0:0:12]
} Nb8 {[%emt 0:0:1]} 32. Kf2 {[%emt 0:0:34]} Bd7 {[%emt 0:0:0]} 33. Ke3 {[%emt 0:0:6]} Nec6 {[%emt 0:0:6]} 34. Naxc6+ {[%emt 0:0:18]} Bxc6 {[%emt 0:0:2]} 35. Rc2 {[%emt 0:1:32]} f6 {[%emt 0:0:10]} 36. a4 {[%emt 0:0:10]
} bxa4 {[%emt 0:1:31]} 37. Nxc6+ {[%emt 0:0:38]} Rxc6 {[%emt 0:0:0]} 38. Rxc6 {[%emt 0:0:1]} Nxc6 {[%emt 0:0:1]} 39. Bxa6 {[%emt 0:0:0]} Kd6 {[%emt 0:0:37]} 40. Bb5 {[%emt 0:0:1]} Ne5 {[%emt 0:0:31]} 41. Ke2 {[%emt 0:0:1]} Kc5 {[%emt 0:0:5]} 42. Bxa4 {[%emt 0:0:2]} Kb4 {[%emt 0:0:0]} 43. b3 {[%emt 0:0:6]} Ng6 {[%emt 0:0:2]} 44. g3 {[%emt 0:0:6]} e5 {[%emt 0:0:2]} 45. Be8 {[%emt 0:0:9]} Ne7 {[%emt 0:0:8]} 46. Bf7 {[%emt 0:0:14]
} Nc6 {[%emt 0:0:1]} 47. h4 {[%emt 0:0:8]} Nd4+ {[%emt 0:0:0]} 48. Kf2 {[%emt 0:0:6]} gxh4 {[%emt 0:0:43]} 49. gxh4 {[%emt 0:0:1]} Nxb3 {[%emt 0:0:4]} 50. Bxb3 {[%emt 0:0:13]} Kxb3 {[%emt 0:0:1]} 51. Kg3 {[%emt 0:0:5]
} Kc3 {[%emt 0:0:10]} 52. Kg4 {[%emt 0:0:14]} Kd3 {[%emt 0:0:0]} 53. Kf5 {[%emt 0:0:4]} Ke3 {[%emt 0:0:4]} 54. Kg6 {[%emt 0:0:1]} Kxf3 {[%emt 0:0:12]} 55. Kxg7 {[%emt 0:0:1]} Kxe4 {[%emt 0:0:5]} 56. h5 {[%emt 0:0:1]
} f5 {[%emt 0:0:4]} 57. h6 {[%emt 0:0:1]} f4 {[%emt 0:0:1]} 58. h7 {[%emt 0:0:1]} f3 {[%emt 0:0:1]} 59. h8=Q {[%emt 0:0:3]} f2 {[%emt 0:0:1]
} 60. Qh3 {[%emt 0:0:3]} Kf4 {[%emt 0:0:2]} 61. Qf1 {[%emt 0:0:0]} Kf3 {[%emt 0:0:4]} 62. Kf6 {[%emt 0:0:2]} e4 {[%emt 0:0:1]} 63. Ke5 {[%emt 0:0:2]} e3 {[%emt 0:0:1]} 64. Kf5 {[%emt 0:0:1]} Kg3 {[%emt 0:0:0]} 65. Qe2 {[%emt 0:0:20]} Kg2 {[%emt 0:0:3]} 66. Kg4 {[%emt 0:0:7]} Kg1 {[%emt 0:0:5]} 67. Kg3 {[%emt 0:0:1]} 1-0

[Event "FIDE World Rapid-ch Open 2018"]
[White "Vallejo Pons, Francisco"]
[Black "Aronian, Levon"]
[Site "St. Petersburg"]
[Round "11.33"]
[Annotator "ChessBase"]
[Result "1-0"]
[Date "2018.12.28"]
[WhiteElo "2695"]
[BlackElo "2765"]
[PlyCount "161"]
[TimeControl "900+10"]

1. d4 {[%emt 0:0:0]} Nf6 {[%emt 0:0:0]} 2. c4 {[%emt 0:0:0]} c5 {[%emt 0:0:0]} 3. d5 {[%emt 0:0:0]} e5 {[%emt 0:0:2]} 4. Nc3 {[%emt 0:0:4]} d6 {[%emt 0:0:2]
} 5. e4 {[%emt 0:0:4]} Nbd7 {[%emt 0:0:4]} 6. Bd3 {[%emt 0:0:0]} Be7 {[%emt 0:0:4]} 7. Nge2 {[%emt 0:0:3]} g6 {[%emt 0:0:35]} 8. h4 {[%emt 0:1:15]} a6 {[%emt 0:0:49]} 9. Bg5 {[%emt 0:1:19]} h6 {[%emt 0:0:46]
} 10. Bd2 {[%emt 0:0:5]} Kf8 {[%emt 0:0:21]} 11. f3 {[%emt 0:1:5]} Kg7 {[%emt 0:0:37]
} 12. Be3 {[%emt 0:1:9]} h5 {[%emt 0:3:1]} 13. Qd2 {[%emt 0:0:0]} Ne8 {[%emt 0:0:7]} 14. g3 {[%emt 0:0:12]} Ndf6 {[%emt 0:0:16]} 15. a3 {[%emt 0:1:10]} Bd7 {[%emt 0:1:5]} 16. b4 {[%emt 0:0:17]} b6 {[%emt 0:0:0]} 17. Rb1 {[%emt 0:0:29]} Rg8 {[%emt 0:0:30]} 18. Rb2 {[%emt 0:0:26]} Kh8 {[%emt 0:0:16]} 19. bxc5 {[%emt 0:1:5]} bxc5 {[%emt 0:0:2]} 20. Kd1 {[%emt 0:1:13]
} Nh7 {[%emt 0:0:7]} 21. Kc2 {[%emt 0:0:2]} f5 {[%emt 0:0:0]} 22. Rhb1 {[%emt 0:0:45]} Nef6 {[%emt 0:1:57]} 23. Kb3 {[%emt 0:1:19]} Rf8 {[%emt 0:4:15]} 24. exf5 {[%emt 0:1:21]} gxf5 {[%emt 0:0:28]} 25. Ka2 {[%emt 0:0:29]
} Ne8 {[%emt 0:0:12]} 26. Rb7 {[%emt 0:0:53]} Bf6 {[%emt 0:0:0]} 27. Bc2 {[%emt 0:0:39]} Bc8 {[%emt 0:0:45]} 28. R7b3 {[%emt 0:0:14]} Bd7 {[%emt 0:0:42]} 29. Rb7 {[%emt 0:0:3]} Bc8 {[%emt 0:0:1]} 30. R7b2 {[%emt 0:0:33]
} Bd7 {[%emt 0:0:45]} 31. Na4 {[%emt 0:0:18]} e4 {[%emt 0:0:0]} 32. Nf4 {[%emt 0:1:9]} Bxb2 {[%emt 0:0:19]} 33. Ng6+ {[%emt 0:0:13]} Kg8 {[%emt 0:0:2]} 34. Nxf8 {[%emt 0:0:3]} Nxf8 {[%emt 0:0:5]} 35. Rxb2 {[%emt 0:0:17]
} Nf6 {[%emt 0:0:19]} 36. Bg5 {[%emt 0:0:14]} N8h7 {[%emt 0:0:0]} 37. Qc3 {[%emt 0:0:59]} exf3 {[%emt 0:0:23]} 38. Qxf3 {[%emt 0:0:9]} Nxg5 {[%emt 0:0:7]} 39. hxg5 {[%emt 0:0:4]} Ng4 {[%emt 0:0:2]} 40. Qf4 {[%emt 0:0:31]
} Ne5 {[%emt 0:0:9]} 41. Nxc5 {[%emt 0:0:11]} Qe7 {[%emt 0:0:0]} 42. Nxd7 {[%emt 0:0:8]} Qxd7 {[%emt 0:0:1]} 43. Bxf5 {[%emt 0:0:6]} Qg7 {[%emt 0:0:3]} 44. Be6+ {[%emt 0:0:6]} Kh8 {[%emt 0:0:2]} 45. Rh2 {[%emt 0:0:6]
} Qg6 {[%emt 0:0:20]} 46. Bf5 {[%emt 0:0:28]} Qe8 {[%emt 0:0:0]} 47. g6 {[%emt 0:0:8]} Kg7 {[%emt 0:0:1]} 48. Rxh5 {[%emt 0:0:7]} Nxg6 {[%emt 0:0:36]} 49. Qh6+ {[%emt 0:0:13]} Kf6 {[%emt 0:0:1]} 50. Bxg6 {[%emt 0:0:18]
} Qxg6 {[%emt 0:0:2]} 51. Qf4+ {[%emt 0:0:8]} Ke7 {[%emt 0:0:0]} 52. Qg5+ {[%emt 0:0:23]} Qxg5 {[%emt 0:0:4]} 53. Rxg5 {[%emt 0:0:0]} Kf6 {[%emt 0:0:0]} 54. Rg4 {[%emt 0:0:4]} Rb8 {[%emt 0:0:1]} 55. Re4 {[%emt 0:0:8]} Kf5 {[%emt 0:0:2]} 56. Re6 {[%emt 0:0:3]} Rb6 {[%emt 0:0:0]} 57. c5 {[%emt 0:0:34]} Rb5 {[%emt 0:0:1]} 58. c6 {[%emt 0:0:10]} Rxd5 {[%emt 0:0:3]} 59. Rh6 {[%emt 0:0:4]} Kg5 {[%emt 0:0:19]} 60. c7 {[%emt 0:0:0]} Rc5 {[%emt 0:0:8]} 61. Rxd6 {[%emt 0:0:2]} Rxc7 {[%emt 0:0:20]} 62. Rxa6 {[%emt 0:0:2]} Rc2+ {[%emt 0:0:2]} 63. Kb3 {[%emt 0:0:7]} Rg2 {[%emt 0:0:1]
} 64. Re6 {[%emt 0:0:21]} Rxg3+ {[%emt 0:0:3]} 65. Kb4 {[%emt 0:0:1]
} Kf5 {[%emt 0:0:6]} 66. Re8 {[%emt 0:0:10]} Kf6 {[%emt 0:0:0]} 67. a4 {[%emt 0:0:7]} Rg4+ {[%emt 0:0:11]} 68. Kb5 {[%emt 0:0:4]} Rg5+ {[%emt 0:0:1]} 69. Kb6 {[%emt 0:0:15]} Kf7 {[%emt 0:0:0]} 70. Re4 {[%emt 0:0:6]
} Rg6+ {[%emt 0:0:1]} 71. Kb5 {[%emt 0:0:19]} Rg5+ {[%emt 0:0:0]} 72. Kb4 {[%emt 0:0:5]} Rg8 {[%emt 0:0:38]} 73. a5 {[%emt 0:0:4]} Rb8+ {[%emt 0:0:9]} 74. Kc5 {[%emt 0:0:12]} Ra8 {[%emt 0:0:7]} 75. Kb5 {[%emt 0:0:19]
} Rb8+ {[%emt 0:0:2]} 76. Kc6 {[%emt 0:0:4]} Ra8 {[%emt 0:0:0]} 77. Ra4 {[%emt 0:0:12]} Ra6+ {[%emt 0:0:7]} 78. Kb7 {[%emt 0:0:5]} Re6 {[%emt 0:0:1]} 79. a6 {[%emt 0:0:5]} Re7+ {[%emt 0:0:6]} 80. Kc6 {[%emt 0:0:5]
} Re6+ {[%emt 0:0:1]} 81. Kd5 {[%emt 0:0:5]} 1-0